bitfinex-derivatives/quotes_SOLF0:USTF0_20251209
["timestamp","ask_amount","ask_price","bid_price","bid_amount"]
[1765261532847,2.09644265,132.32,132.3,0.05812922]
[1765261533351,2.09644265,132.32,132.3,3.26812922]
[1765261533745,0.04865023,132.32,132.3,3.26812922]
[1765261536742,0.04865023,132.32,132.3,0.05812922]
[1765261536948,107.91384265,132.32,132.3,0.05812922]
[1765261537348,8.89924265,132.32,132.3,0.05812922]
[1765261537549,2.04779242,132.31,132.3,0.05812922]
[1765261542254,2.04779242,132.31,132.3,3.26812922]
[1765261542559,2.09644265,132.32,132.3,3.26812922]
[1765261545561,0.04865023,132.32,132.3,3.26812922]
[1765261547061,2.04779242,132.31,132.3,0.05812922]
[1765261550865,2.04779242,132.31,132.24,3.32]
[1765261550866,105.8329,132.3,132.24,3.32]
[1765261551077,2.04779242,132.29,132.24,3.32]
[1765261551760,0.05080796,132.28,132.25,0.05383116]
[1765261551962,0.05080796,132.28,132.26,3.32]
[1765261552667,6.85530796,132.28,132.26,3.32]
[1765261553659,6.85530796,132.28,132.25,3.37383116]
[1765261554368,8.90310038,132.28,132.25,3.37383116]
[1765261557059,5.59093394,132.27,132.25,3.37383116]
[1765261557260,8.90310038,132.28,132.25,3.37383116]
[1765261557568,5.59093199,132.27,132.25,3.37383116]
[1765261557765,8.90310038,132.28,132.25,3.37383116]
[1765261557967,5.59093199,132.27,132.25,3.37383116]
[1765261558266,8.90310038,132.28,132.25,3.37383116]
[1765261558467,5.59240332,132.27,132.25,3.37383116]
[1765261558669,6.85530796,132.28,132.25,3.37383116]
[1765261558872,5.59248573,132.27,132.25,3.37383116]
[1765261559055,6.85530796,132.28,132.25,3.37383116]
[1765261559260,12.39728987,132.27,132.25,0.05383116]
[1765261559456,6.8053,132.27,132.25,0.05383116]
[1765261559864,8.85309242,132.27,132.25,0.05383116]
[1765261560266,5.59092017,132.26,132.2,3.32]
[1765261560461,7.63871259,132.25,132.2,3.32]
[1765261560768,6.8078,132.22,132.17,3.32]
[1765261560964,5.59092017,132.21,132.17,3.32]
[1765261561164,0.05471212,132.2,132.19,3.32]
[1765261562863,0.05471212,132.2,132.18,3.24360928]
[1765261563360,0.05471212,132.2,132.18,0.05360928]
[1765261563764,5.57782564,132.19,132.18,3.24360928]
[1765261564071,0.05471212,132.2,132.18,3.24360928]
[1765261565173,6.8058,132.26,132.2,3.19]
[1765261565471,69.77344434,132.25,132.2,3.19]
[1765261565672,64.28,132.25,132.2,3.19]
[1765261565874,64.28,132.25,132.21,3.19]
[1765261566267,64.28,132.25,132.2,2.04779242]
[1765261566268,0.04913102,132.24,132.23,3.19]
[1765261567469,0.04913102,132.24,132.23,5.23779242]
[1765261568774,0.04913102,132.24,132.23,3.19]
[1765261569370,64.3,132.29,132.24,3.19]
[1765261569573,64.3,132.29,132.26,3.19]
[1765261570367,64.35574897,132.29,132.26,3.23959095]
[1765261570968,0.05574897,132.29,132.26,3.23959095]
[1765261571777,0.05574897,132.29,132.26,0.04959095]
[1765261571778,2.10354139,132.29,132.26,0.04959095]
[1765261572476,6.8047,132.28,132.26,0.04959095]
[1765261577379,2.04779242,132.27,132.26,0.04959095]
[1765261577575,6.8055,132.26,132.24,3.19]
[1765261577882,2.04779242,132.25,132.21,3.19]
[1765261578477,8.85329242,132.26,132.21,3.19]
[1765261578784,0.04898205,132.25,132.22,3.2346352]
[1765261594289,0.04898205,132.25,132.23,3.18]
[1765261608309,0.04898205,132.25,132.22,0.0546352]
[1765261608503,5.53786132,132.24,132.22,3.2446352]
[1765261608701,0.04898205,132.25,132.22,3.2446352]
[1765261608903,5.53785869,132.24,132.22,3.2446352]
[1765261609107,0.04898205,132.25,132.22,3.2446352]
[1765261609296,5.5378987,132.24,132.22,3.2446352]
[1765261609611,0.04898205,132.25,132.22,3.2446352]
[1765261609808,5.54206056,132.24,132.22,3.2446352]
[1765261610108,0.04898205,132.25,132.22,3.2446352]
[1765261610311,5.54206058,132.24,132.22,3.2446352]
[1765261610502,0.04898205,132.25,132.22,3.2446352]
[1765261611606,5.54475456,132.24,132.22,3.2446352]
[1765261611905,0.04898205,132.25,132.22,3.2446352]
[1765261612112,5.54475456,132.24,132.22,3.2446352]
[1765261612298,0.04898205,132.25,132.22,3.2446352]
[1765261612502,5.54530988,132.24,132.22,3.2446352]
[1765261612811,0.04898205,132.25,132.22,3.2446352]
[1765261613104,5.54637607,132.24,132.22,3.2446352]
[1765261613306,0.04898205,132.25,132.22,3.2446352]
[1765261613513,5.54632356,132.24,132.22,3.2446352]
[1765261613812,0.04898205,132.25,132.22,3.2446352]
[1765261614022,5.54628675,132.24,132.22,3.2446352]
[1765261614310,0.04898205,132.25,132.22,3.2446352]
[1765261614512,5.54614357,132.24,132.22,3.2446352]
[1765261614815,0.04898205,132.25,132.22,3.2446352]
[1765261615109,5.54614357,132.24,132.22,3.2446352]
[1765261615309,0.04898205,132.25,132.22,3.2446352]
[1765261615610,5.5466744,132.24,132.22,3.2446352]
[1765261615808,0.04898205,132.25,132.22,3.2446352]
[1765261616110,5.54705051,132.24,132.22,3.2446352]
[1765261616310,0.04898205,132.25,132.22,3.2446352]
[1765261616510,5.54926941,132.24,132.22,3.2446352]
[1765261616702,0.04898205,132.25,132.22,3.2446352]
[1765261617001,5.54888948,132.24,132.22,3.2446352]
[1765261617201,0.04898205,132.25,132.22,3.2446352]
[1765261617401,5.54924403,132.24,132.22,3.2446352]
[1765261617601,0.04898205,132.25,132.22,3.2446352]
[1765261617809,5.54924229,132.24,132.22,3.2446352]
[1765261618010,0.04898205,132.25,132.22,3.2446352]
[1765261618310,5.54853216,132.24,132.22,3.2446352]
[1765261618504,0.04898205,132.25,132.22,3.2446352]
[1765261618703,5.54850411,132.24,132.22,3.2446352]
[1765261618904,0.04898205,132.25,132.22,3.2446352]
[1765261619105,5.54850237,132.24,132.22,3.2446352]
[1765261619308,0.04898205,132.25,132.22,3.2446352]
[1765261619511,5.54811536,132.24,132.22,3.2446352]
[1765261619699,0.04898205,132.25,132.22,3.2446352]
[1765261619903,5.54811536,132.24,132.22,3.2446352]
[1765261620202,0.04898205,132.25,132.22,3.2446352]
[1765261620502,5.54814289,132.24,132.22,3.2446352]
[1765261620704,0.04898205,132.25,132.22,3.2446352]
[1765261621004,5.54814289,132.24,132.22,3.2446352]
[1765261621200,0.04898205,132.25,132.22,3.2446352]
[1765261621404,10.58423366,132.24,132.22,0.0546352]
[1765261621606,5.54816412,132.23,132.22,0.0546352]
[1765261623610,5.54816412,132.23,132.22,3.3746352]
[1765261624208,5.54816412,132.23,132.22,0.0546352]
[1765261627116,5.54816412,132.23,132.22,3.3746352]
[1765261627415,0.04898205,132.25,132.22,3.3746352]
[1765261627613,5.54444846,132.24,132.22,3.3746352]
[1765261627913,0.04898205,132.25,132.22,3.3746352]
[1765261629613,0.04898205,132.25,132.22,6.8619352]
[1765261629807,0.04898205,132.25,132.23,3.32]
[1765261646628,10.00651458,132.29,132.24,3.29]
[1765261646629,7.01096561,132.29,132.24,3.29]
[1765261646838,5.53289499,132.28,132.24,3.29]
[1765261647029,5.53289499,132.27,132.24,3.29]
[1765261647238,71.31096561,132.3,132.24,3.29]
[1765261647436,5.53207866,132.29,132.24,3.29]
[1765261647637,5.58547223,132.28,132.26,3.29]
[1765261647935,0.05339357,132.28,132.26,3.29]
[1765261655335,18.81547353,132.33,132.27,3.29]
[1765261655638,5.51941302,132.32,132.27,3.29]
[1765261655837,5.51941302,132.31,132.29,3.29]
[1765261656037,13.81256561,132.34,132.29,3.29]
[1765261656238,5.51970438,132.33,132.29,3.29]
[1765261656542,5.57747434,132.32,132.31,3.29]
[1765261657139,0.05776996,132.32,132.31,3.29]
[1765261657534,5.57293818,132.32,132.31,3.29]
[1765261657735,0.05776996,132.32,132.31,3.29]
[1765261666860,7.54336261,132.37,132.31,3.29]
[1765261667066,6.7997,132.38,132.31,3.29]
[1765261667067,6.7997,132.38,132.33,3.29]
[1765261667755,2.04811806,132.39,132.34,0.05596697]
[1765261667756,2.10264608,132.37,132.34,0.05596697]
[1765261668465,6.8005,132.36,132.34,0.05596697]
[1765261668969,2.04811806,132.35,132.34,0.05596697]
[1765261669367,7.54086677,132.35,132.3,3.21]
[1765261669559,2.04811806,132.34,132.3,3.21]
[1765261670360,0.05036587,132.33,132.31,3.26756617]
[1765261689582,0.00036587,132.33,132.31,3.26756617]
[1765261690480,14.05450201,132.39,132.32,3.19]
[1765261690673,2.04811806,132.39,132.33,2.04811806]
[1765261690876,2.04811806,132.39,132.34,3.19]
[1765261691071,64.26,132.4,132.36,3.19]
[1765261691278,6.7971,132.43,132.36,3.19]
[1765261691279,2.04811806,132.41,132.36,3.19]
[1765261691483,0.04971997,132.4,132.38,3.19]
[1765261698782,2.04811806,132.44,132.38,3.19]
[1765261699881,0.05108022,132.42,132.41,3.21]
[1765261707481,383.05933016,132.46,132.41,3.21]
[1765261707685,385.10744822,132.46,132.41,3.21]
[1765261708693,383.05933016,132.46,132.41,3.21]
[1765261709091,389.85473016,132.46,132.41,3.21]
[1765261715494,6.7959,132.45,132.41,3.21]
[1765261717295,6.7967,132.44,132.41,3.21]
[1765261717592,6.7967,132.44,132.4,11.26082834]
[1765261718693,6.7967,132.44,132.4,3.26082834]
[1765261724906,6.7969,132.43,132.4,0.05082834]
[1765261725200,67.41269008,132.44,132.4,3.26082834]
[1765261726495,6.7974,132.42,132.4,3.26082834]
[1765261726896,6.7974,132.42,132.4,0.05082834]
[1765261727094,6.7974,132.42,132.37,3.21]
[1765261727095,6.7986,132.4,132.35,3.21]
[1765261728003,0.05647464,132.39,132.37,3.21]
[1765261731604,6.85557464,132.39,132.37,3.21]
[1765261736112,6.85557464,132.39,132.36,3.28051467]
[1765261737014,12.27312229,132.38,132.36,0.05051467]
[1765261737313,5.47362229,132.37,132.36,0.05051467]
[1765261738106,5.46871113,132.37,132.36,0.05051467]
[1765261740711,5.46871113,132.37,132.32,3.23]
[1765261740712,6.8007,132.36,132.32,3.23]
[1765261740910,5.46871113,132.35,132.32,3.23]
[1765261741110,6.8007,132.36,132.32,3.23]
[1765261741312,5.46285026,132.35,132.32,3.23]
[1765261741512,71.0207,132.36,132.32,3.23]
[1765261741712,5.51070151,132.35,132.33,0.05513103]
[1765261741912,0.04784954,132.35,132.33,0.05513103]
[1765261745322,6.84884954,132.35,132.33,0.05513103]
[1765261745623,6.84884954,132.35,132.33,3.25513103]
[1765261745822,10.04153962,132.35,132.33,0.05513103]
[1765261756930,6.84884954,132.35,132.33,0.05513103]
[1765261768727,8.89562985,132.35,132.33,3.38513103]
[1765261769640,8.89562985,132.35,132.33,0.05513103]
[1765261774236,5.46734379,132.34,132.33,0.05513103]
[1765261783647,5.46734379,132.34,132.33,3.38513103]
[1765261783850,0.04784954,132.35,132.33,3.38513103]
[1765261785448,0.04784954,132.35,132.34,3.33]
[1765261785645,5.45013114,132.35,132.34,3.33]
[1765261786252,0.04784954,132.35,132.34,3.33]
[1765261791441,0.04784954,132.35,132.33,3.37513103]
[1765261801560,2.04678031,132.38,132.33,3.37513103]
[1765261801858,5.39625295,132.37,132.33,3.37513103]
[1765261802160,7.44266391,132.36,132.33,3.37513103]
[1765261802361,2.10324585,132.36,132.33,3.37513103]
[1765261803461,5.39532059,132.35,132.33,3.37513103]
[1765261803662,2.10324585,132.36,132.33,3.37513103]
[1765261803862,5.39497998,132.35,132.33,3.37513103]
[1765261804061,2.10324585,132.36,132.33,3.37513103]
[1765261804258,5.39389928,132.35,132.33,0.05513103]
[1765261804457,5.39383852,132.34,132.33,0.05513103]
[1765261804870,5.39383852,132.34,132.33,3.36513103]
[1765261805561,5.39383852,132.34,132.33,0.05513103]
[1765261806150,7.44061883,132.34,132.33,0.05513103]
[1765261807367,5.39383852,132.34,132.33,0.05513103]
[1765261807557,7.44061883,132.34,132.33,0.05513103]
[1765261808568,7.44061883,132.34,132.33,3.36513103]
[1765261808771,5.39383852,132.34,132.33,3.36513103]
[1765261809669,2.10324585,132.36,132.33,3.36513103]
[1765261809864,0.05646554,132.36,132.33,3.36513103]
[1765261820079,0.05646554,132.36,132.33,10.16693103]
[1765261820578,0.05646554,132.36,132.34,3.06]
[1765261822378,2.04678031,132.4,132.35,3.06]
[1765261822581,5.38152719,132.39,132.36,3.06]
[1765261822781,2.04678031,132.43,132.36,3.06]
[1765261822980,5.38206069,132.42,132.36,3.06]
[1765261823182,2.04678031,132.43,132.36,3.06]
[1765261823183,5.38206069,132.41,132.36,3.06]
[1765261823369,2.04678031,132.43,132.38,3.06]
[1765261823574,5.37976871,132.42,132.38,3.06]
[1765261823776,5.37976871,132.41,132.38,3.06]
[1765261823974,8.84378031,132.43,132.38,3.06]
[1765261824179,12.17808563,132.42,132.38,3.06]
[1765261824381,7.42736594,132.41,132.38,3.06]
[1765261824575,2.04678031,132.41,132.38,3.06]
[1765261827388,2.04678031,132.43,132.39,3.06]
[1765261827579,2.04678031,132.43,132.41,3.06]
[1765261830684,6.7965,132.44,132.41,3.06]
[1765261830989,5.35913104,132.43,132.41,3.06]
[1765261831187,6.7965,132.44,132.41,3.06]
[1765261832185,3.19382232,132.45,132.41,3.06]
[1765261832389,5.3563878,132.44,132.41,3.06]
[1765261832589,3.19382232,132.45,132.41,3.06]
[1765261832889,5.3563878,132.44,132.41,3.06]
[1765261833188,3.19382232,132.45,132.41,3.06]
[1765261834890,9.98942232,132.46,132.41,3.06]
[1765261835193,12.14857473,132.45,132.41,3.06]
[1765261835393,6.7959,132.45,132.41,3.06]
[1765261838200,12.14275061,132.45,132.41,3.06]
[1765261838487,6.7959,132.45,132.41,3.06]
[1765261839196,6.7964,132.44,132.41,3.06]
[1765261841290,9.99022232,132.44,132.4,3.11372468]
[1765261850609,6.7969,132.43,132.4,3.11372468]
[1765261857814,3.19382232,132.44,132.4,3.11372468]
[1765261858010,6.7962,132.45,132.4,3.11372468]
[1765261858218,5.34441887,132.44,132.4,3.11372468]
[1765261858417,6.7962,132.45,132.4,3.11372468]
[1765261858617,5.3454477,132.44,132.4,3.11372468]
[1765261858815,6.7962,132.45,132.4,3.11372468]
[1765261859013,5.3454477,132.44,132.4,3.11372468]
[1765261859212,6.7962,132.45,132.4,3.11372468]
[1765261859411,5.34662481,132.44,132.4,3.11372468]
[1765261859613,6.7965,132.44,132.4,0.05372468]
[1765261860117,6.7965,132.44,132.4,3.43372468]
[1765261860420,5.34722024,132.43,132.4,3.43372468]
[1765261860616,6.7965,132.44,132.4,3.43372468]
[1765261860811,5.34718605,132.43,132.4,0.05372468]
[1765261861112,3.19382232,132.42,132.4,0.05372468]
[1765261861314,74.21122232,132.42,132.4,0.05372468]
[1765261861513,5.34766854,132.41,132.4,0.05372468]
[1765261861713,5.34766854,132.41,132.35,3.38]
[1765261861914,6.799,132.39,132.35,3.38]
[1765261862318,6.799,132.39,132.33,10.0016]
[1765261862511,3.19382232,132.38,132.34,3.2]
[1765261862715,0.04930276,132.37,132.35,3.25797045]
[1765261871138,0.04930276,132.37,132.35,0.05797045]
[1765261871335,0.04930276,132.37,132.35,3.25797045]
[1765261880347,6.84930276,132.37,132.35,0.05797045]
[1765261880550,6.84930276,132.37,132.35,3.16797045]
[1765261880743,6.84930276,132.37,132.35,0.05797045]
[1765261882042,6.801,132.35,132.31,3.11]
[1765261883051,0.05012949,132.34,132.32,3.15858819]
[1765261883437,6.85182949,132.34,132.32,0.04858819]
[1765261889440,10.04565181,132.34,132.32,0.04858819]
[1765261889649,6.803,132.31,132.28,3.11]
[1765261890548,6.803,132.31,132.28,3.16638039]
[1765261890549,6.85876894,132.31,132.28,3.16638039]
[1765261891247,6.8037,132.3,132.28,0.05638039]
[1765261895356,2.04805027,132.29,132.28,0.05638039]
[1765261896751,6.8046,132.28,132.25,3.11]
[1765261897652,6.85521635,132.28,132.25,3.11]
[1765261897854,6.85521635,132.28,132.25,3.15927166]
[1765261900861,8.85325027,132.27,132.25,0.04927166]
[1765261901161,8.85325027,132.27,132.21,187.12316361]
[1765261901162,107.90535027,132.27,132.21,182.23316361]
[1765261901353,2.04805027,132.25,132.21,182.23316361]
[1765261901761,2.04805027,132.23,132.19,3.11]
[1765261902266,0.05188168,132.22,132.2,3.15952721]
[1765261903553,6.85968168,132.22,132.2,3.15952721]
[1765261907470,6.85968168,132.22,132.17,3.11]
[1765261907471,8.85635027,132.21,132.17,3.11]
[1765261908457,8.85635027,132.21,132.18,3.29867626]
[1765261908659,8.9076761,132.21,132.18,3.29867626]
[1765261913071,0.05132583,132.21,132.18,5.34672653]
[1765261913265,0.05132583,132.21,132.19,3.25]
[1765261914674,0.05132583,132.21,132.2,5.29805027]
[1765261914977,6.8063,132.25,132.21,3.25]
[1765261915873,0.05468798,132.24,132.23,3.25]
[1765261919674,0.05468798,132.24,132.22,0.0561689]
[1765261919974,2.10273825,132.24,132.22,0.0561689]
[1765261920475,107.98643825,132.24,132.18,3.25]
[1765261920676,2.04805027,132.21,132.18,3.25]
[1765261921572,2.10149135,132.21,132.18,3.3031464]
[1765261923879,0.05344108,132.21,132.18,3.3031464]
[1765261929284,0.05344108,132.21,132.18,10.1126464]
[1765261929481,0.00344108,132.21,132.19,3.18]
[1765261932684,0.00344108,132.21,132.19,9.989]
[1765261932988,0.00344108,132.21,132.2,3.18]
[1765261934492,0.00344108,132.21,132.2,4.7]
[1765261937990,0.00344108,132.21,132.2,3.18]
[1765261938393,0.00344108,132.21,132.2,11.18]
[1765261943591,0.00344108,132.21,132.2,75.48]
[1765261946602,11.84367597,132.29,132.23,3.15]
[1765261946802,6.8044,132.29,132.25,3.15]
[1765261947009,2.04805027,132.3,132.25,3.15]
[1765261947203,5.3693329,132.29,132.25,3.15]
[1765261947402,2.04805027,132.3,132.25,3.15]
[1765261947604,5.36771139,132.29,132.25,3.15]
[1765261947804,0.04997252,132.29,132.27,3.15]
[1765261953817,0.04997252,132.29,132.26,3.20290354]
[1765261954513,2.04805027,132.28,132.26,0.05290354]
[1765261954708,3.25150373,132.29,132.26,0.05290354]
[1765261955515,10.05560373,132.29,132.26,0.05290354]
[1765261958211,6.8048,132.28,132.26,0.05290354]
[1765261958618,3.20153121,132.27,132.26,0.05290354]
[1765261958809,3.20153121,132.27,132.21,3.15]
[1765261959008,10.00673121,132.27,132.21,3.15]
[1765261960018,0.04948463,132.25,132.23,3.20528314]
[1765261961213,0.04948463,132.25,132.23,0.05528314]
[1765261965518,0.04948463,132.25,132.23,3.20528314]
[1765261967521,0.04948463,132.25,132.23,0.05528314]
[1765261967920,0.04948463,132.25,132.23,3.20528314]
[1765261977622,0.04948463,132.25,132.23,0.05528314]
[1765261979825,0.04948463,132.25,132.23,3.36528314]
[1765261980814,0.04948463,132.25,132.23,10.17218314]
[1765261981025,0.04948463,132.25,132.24,3.31]
[1765261982431,0.04948463,132.25,132.23,3.16528314]
[1765261983331,5.35400992,132.24,132.23,0.05528314]
[1765261983928,5.35400992,132.24,132.19,9.9188]
[1765261983929,12.16100992,132.24,132.19,3.11]
[1765261984128,6.807,132.24,132.19,3.11]
[1765261984330,0.04948463,132.25,132.19,3.11]
[1765261984530,5.3543765,132.24,132.19,3.11]
[1765261984738,0.04948463,132.25,132.19,3.11]
[1765261984933,5.35437657,132.24,132.21,3.11]
[1765261985126,0.04948463,132.25,132.21,3.11]
[1765261985426,5.35382363,132.24,132.21,3.11]
[1765261985627,0.04948463,132.25,132.21,3.11]
[1765261985833,5.35378457,132.24,132.21,3.11]
[1765261986130,0.04948463,132.25,132.21,3.11]
[1765261986325,5.35318538,132.24,132.21,3.11]
[1765261986525,6.8068,132.24,132.21,3.11]
[1765261987429,105.8836,132.24,132.2,0.05141691]
[1765261987633,105.8836,132.24,132.2,3.16141691]
[1765261988634,6.8078,132.22,132.2,3.16141691]
[1765261988826,6.86581315,132.22,132.2,3.16141691]
[1765261990728,6.86581315,132.22,132.2,0.05141691]
[1765261993942,5.34760937,132.21,132.2,0.05141691]
[1765261994435,6.86581315,132.22,132.18,3.11]
[1765261994642,6.8089,132.2,132.16,3.11]
[1765261994937,175.20611407,132.22,132.16,3.11]
[1765261995132,5.34809235,132.21,132.16,3.11]
[1765261995334,6.8094,132.19,132.16,3.11]
[1765261995635,6.86163487,132.19,132.16,3.16449973]
[1765261998830,0.05223487,132.19,132.16,0.05449973]
[1765261999032,6.8099,132.18,132.16,0.05449973]
[1765262016959,6.8099,132.18,132.16,3.43449973]
[1765262018058,6.8099,132.18,132.16,0.05449973]
[1765262021252,2.05179281,132.17,132.16,0.05449973]
[1765262022760,66.42402768,132.19,132.16,3.43449973]
[1765262024560,73.23332768,132.19,132.16,3.43449973]
[1765262024956,66.42402768,132.19,132.16,3.43449973]
[1765262027558,0.05223487,132.19,132.16,3.43449973]
[1765262030166,0.05223487,132.19,132.17,3.24]
[1765262031667,0.05223487,132.19,132.17,10.0499]
[1765262031865,0.05223487,132.19,132.18,3.24]
[1765262036175,0.00223487,132.19,132.18,3.24]
[1765262038572,5.37800953,132.22,132.19,3.24]
[1765262038777,256.43271099,132.23,132.19,3.24]
[1765262038975,5.37836932,132.22,132.19,3.24]
[1765262039174,256.43271099,132.23,132.19,3.24]
[1765262039490,5.42896225,132.22,132.21,3.24]
[1765262039786,0.05069465,132.22,132.21,3.24]
[1765262040581,0.05069465,132.22,132.2,0.05508999]
[1765262040982,2.05179281,132.21,132.2,0.05508999]
[1765262041784,2.05179281,132.21,132.2,3.29508999]
[1765262043389,2.05179281,132.21,132.2,3.27508999]
[1765262043588,2.05179281,132.21,132.2,0.05508999]
[1765262052392,7.429607,132.21,132.2,0.05508999]
[1765262052794,6.8094,132.19,132.14,3.22]
[1765262053104,2.05179281,132.15,132.12,3.22]
[1765262053692,2.10213459,132.15,132.12,3.27779542]
[1765262054500,8.91373459,132.15,132.12,3.27779542]
[1765262061703,2.10213459,132.15,132.12,3.27779542]
[1765262062298,0.05034178,132.15,132.12,3.27779542]
[1765262067708,2.05179281,132.14,132.12,0.05779542]
[1765262068204,2.05179281,132.14,132.12,3.35779542]
[1765262068402,2.05179281,132.14,132.12,0.05779542]
[1765262070504,8.86369281,132.14,132.12,0.05779542]
[1765262071511,2.05179281,132.14,132.12,3.35779542]
[1765262072105,0.05034178,132.15,132.12,3.35779542]
[1765262072306,2.10213459,132.15,132.12,3.35779542]
[1765262074103,2.10213459,132.15,132.12,0.05779542]
[1765262074309,2.05179281,132.13,132.12,0.05779542]
[1765262076714,6.8119,132.14,132.12,0.05779542]
[1765262077413,6.8128,132.12,132.08,3.3]
[1765262077618,3.208432,132.13,132.06,3.3]
[1765262078011,6.8135,132.11,132.06,3.3]
[1765262078512,0.04846641,132.1,132.07,0.04999971]
[1765262078718,0.04846641,132.1,132.07,3.34999971]
[1765262079020,6.86246641,132.1,132.07,3.34999971]
[1765262079412,6.86246641,132.1,132.07,0.04999971]
[1765262079723,6.8144,132.09,132.07,0.04999971]
[1765262079910,10.022832,132.09,132.07,0.04999971]
[1765262081117,64.38846641,132.1,132.07,3.34999971]
[1765262082322,64.38846641,132.1,132.07,0.04999971]
[1765262082520,64.38846641,132.1,132.07,3.34999971]
[1765262082716,71.20246641,132.1,132.07,3.34999971]
[1765262083917,64.38846641,132.1,132.07,3.34999971]
[1765262084119,0.04846641,132.1,132.07,3.34999971]
[1765262084619,0.04846641,132.1,132.07,0.04999971]
[1765262085517,6.86246641,132.1,132.07,0.04999971]
[1765262087428,6.8145,132.09,132.07,0.04999971]
[1765262089229,71.1745,132.09,132.07,0.04999971]
[1765262093633,71.1745,132.09,132.04,3.36]
[1765262094729,71.1745,132.09,132.05,3.41507639]
[1765262094930,0.05292157,132.08,132.05,3.41507639]
[1765262100429,6.86802157,132.08,132.05,3.41507639]
[1765262101439,0.05292157,132.08,132.05,3.41507639]
[1765262106445,0.00292157,132.08,132.05,3.41507639]
[1765262106650,173.556532,132.14,132.05,3.41507639]
[1765262106849,6.8126,132.13,132.05,3.36]
[1765262107049,6.8126,132.13,132.07,3.14]
[1765262107650,0.04801332,132.11,132.1,3.14]
[1765262116563,6.811,132.16,132.11,3.14]
[1765262116758,6.811,132.16,132.12,3.14]
[1765262116956,6.8099,132.18,132.12,3.14]
[1765262117255,5.46392631,132.17,132.12,3.14]
[1765262117450,6.8099,132.18,132.12,3.14]
[1765262117646,0.05593352,132.16,132.14,3.19492258]
[1765262129669,6.8089,132.2,132.14,3.19492258]
[1765262130168,6.8089,132.2,132.15,3.37]
[1765262130764,0.0491831,132.19,132.15,3.37]
[1765262131167,0.0491831,132.19,132.15,10.181]
[1765262131362,0.0491831,132.19,132.16,3.37]
[1765262132866,0.0491831,132.19,132.14,11.42492258]
[1765262133072,0.0491831,132.19,132.15,3.37]
[1765262133268,6.8099,132.18,132.14,11.42492258]
[1765262133574,6.8099,132.18,132.14,3.42492258]
[1765262135174,3.2576151,132.19,132.14,3.42492258]
[1765262136781,2.05185111,132.18,132.14,3.42492258]
[1765262139273,8.86165111,132.18,132.14,3.42492258]
[1765262142476,8.86165111,132.18,132.14,0.05492258]
[1765262142681,8.86165111,132.18,132.14,3.42492258]
[1765262145478,2.05185111,132.16,132.14,3.42492258]
[1765262145680,0.05126545,132.16,132.14,3.42492258]
[1765262146481,2.05185111,132.15,132.14,0.05492258]
[1765262151072,6.8117,132.14,132.1,3.31]
[1765262151986,0.0527362,132.13,132.12,3.31]
[1765262153083,0.0527362,132.13,132.08,8.0]
[1765262153272,7.54466664,132.12,132.09,3.31]
[1765262153480,2.05185111,132.13,132.09,3.31]
[1765262153680,5.49273821,132.12,132.09,3.31]
[1765262153973,2.05185111,132.13,132.09,3.31]
[1765262154176,5.54996874,132.12,132.1,3.36420802]
[1765262154373,0.05724197,132.12,132.1,3.36420802]
[1765262154887,5.49192094,132.11,132.1,0.05420802]
[1765262156288,0.05724197,132.12,132.1,0.05420802]
[1765262157385,0.05724197,132.12,132.1,3.36420802]
[1765262157589,2.05185111,132.11,132.1,3.36420802]
[1765262157980,0.05724197,132.12,132.1,3.36420802]
[1765262160879,6.87014197,132.12,132.1,3.36420802]
[1765262161790,6.87014197,132.12,132.1,0.05420802]
[1765262161991,6.87014197,132.12,132.1,3.36420802]
[1765262162178,6.87014197,132.12,132.1,0.05420802]
[1765262162179,8.92199308,132.12,132.1,0.05420802]
[1765262162379,6.8138,132.1,132.08,3.31]
[1765262163290,6.8138,132.1,132.08,3.36774363]
[1765262163492,6.87034197,132.12,132.08,3.36774363]
[1765262166484,6.8135,132.11,132.08,3.36774363]
[1765262167700,0.05724197,132.12,132.08,3.36774363]
[1765262169692,6.87014197,132.12,132.08,3.36774363]
[1765262171086,0.05724197,132.12,132.08,3.36774363]
[1765262175401,0.05724197,132.12,132.08,18.18214363]
[1765262175702,0.05724197,132.12,132.09,3.39]
[1765262176198,0.05724197,132.12,132.1,3.39]
[1765262177496,0.05724197,132.12,132.11,3.39]
[1765262182907,2.05185111,132.15,132.11,3.39]